bitfinex-derivatives/quotes_ETHF0:USTF0_20240901
["timestamp","ask_amount","ask_price","bid_price","bid_amount"]
[1725199178696,2.11874595,2473.4,2473.2,7.6193]
[1725199180406,2.11874595,2473.4,2473.2,3.5761]
[1725199180808,2.11874595,2473.3,2473.2,3.5761]
[1725199181202,2.11874595,2473.3,2473.2,7.6193]
[1725199182408,2.11874595,2473.4,2473.2,7.6193]
[1725199182603,2.11874595,2473.4,2473.2,3.5761]
[1725199182907,2.11874595,2473.3,2473.2,3.5761]
[1725199183407,2.11874595,2473.3,2473.2,7.6193]
[1725199183604,2.11874595,2473.3,2472.9,1.06690198]
[1725199183605,2.64365722,2473.4,2472.9,3.21386943]
[1725199183809,2.1184585,2473.1,2472.9,3.21386943]
[1725199184107,2.1184585,2473.0,2472.9,3.21386943]
[1725199184504,2.1184585,2473.1,2472.9,3.21386943]
[1725199185405,2.1184585,2473.0,2472.9,3.21386943]
[1725199185599,2.1184585,2473.1,2472.9,3.21386943]
[1725199186306,2.1184585,2473.0,2472.9,3.21386943]
[1725199186507,2.1184585,2473.1,2472.9,3.61826943]
[1725199186807,2.1184585,2473.1,2472.9,3.21386943]
[1725199187107,2.1184585,2473.1,2473.0,0.3739]
[1725199188003,2.1184585,2473.2,2473.1,0.40437]
[1725199188715,2.1184585,2473.2,2473.0,0.77828]
[1725199188899,2.1184585,2473.2,2473.1,4.44757]
[1725199189210,2.1184585,2473.4,2473.3,0.40433]
[1725199189412,2.1184585,2473.4,2473.3,4.44753]
[1725199189711,2.1184585,2473.4,2473.3,4.0432]
[1725199190606,2.64365722,2473.5,2473.3,4.44753]
[1725199190607,2.1184585,2473.5,2473.3,4.44753]
[1725199190907,1.58854443,2473.4,2473.2,3.2078]
[1725199191110,1.58854443,2473.3,2473.2,3.2078]
[1725199191418,1.58854443,2473.4,2473.2,3.2078]
[1725199192100,2.1184585,2473.3,2473.2,3.2078]
[1725199192810,0.40433,2473.3,2473.2,3.2078]
[1725199193313,0.40433,2473.3,2472.9,0.00606943]
[1725199193314,10.0432,2473.3,2472.9,0.00606943]
[1725199193503,2.52260398,2473.0,2472.9,0.00606943]
[1725199193701,2.11822398,2473.0,2472.9,0.00606943]
[1725199194710,2.52260398,2473.0,2472.9,0.00606943]
[1725199195008,2.11822398,2473.0,2472.9,0.00606943]
[1725199195615,6.56660398,2473.0,2472.9,0.00606943]
[1725199195807,13.09615997,2473.0,2472.9,0.00606943]
[1725199196109,15.07116534,2473.0,2472.9,0.00606943]
[1725199196311,4.44838,2473.0,2472.9,0.00606943]
[1725199197513,10.44838,2473.0,2472.9,0.00606943]
[1725199199824,4.44838,2473.0,2472.9,0.00606943]
[1725199200221,0.7637,2473.1,2472.9,0.00606943]
[1725199200424,1.16807,2473.1,2472.9,0.00606943]
[1725199200611,4.44838,2473.0,2472.9,0.00606943]
[1725199200816,9.05869736,2473.0,2472.9,0.00606943]
[1725199201016,15.05869736,2473.0,2472.9,0.00606943]
[1725199201223,4.44838,2473.0,2472.9,0.00606943]
[1725199201414,0.3857,2473.1,2472.9,4.05006943]
[1725199201722,2.52204439,2473.1,2472.9,0.00606943]
[1725199201916,2.11766439,2473.0,2472.9,0.00606943]
[1725199202920,2.50146439,2473.1,2472.9,0.00606943]
[1725199203914,2.90583439,2473.1,2472.9,0.00606943]
[1725199204111,0.40438,2473.0,2472.9,0.00606943]
[1725199204316,2.52204439,2473.0,2472.9,0.00606943]
[1725199204521,0.40438,2473.0,2472.9,0.00606943]
[1725199204924,3.05162136,2473.0,2472.9,0.00606943]
[1725199205126,0.40438,2473.0,2472.9,0.00606943]
[1725199205620,7.09562136,2473.0,2472.9,0.00606943]
[1725199206930,7.09570291,2473.0,2472.9,0.00606943]
[1725199207125,3.52382153,2473.2,2472.9,0.00606943]
[1725199207126,3.92818153,2473.2,2472.9,0.00606943]
[1725199207427,2.64728927,2473.0,2472.9,3.21386943]
[1725199207623,3.05166927,2473.0,2472.9,0.00606943]
[1725199208527,4.44838,2473.0,2472.9,0.00606943]
[1725199210626,14.26276,2473.0,2472.5,3.2078]
[1725199210824,1.01117,2472.5,2472.0,1.06083255]
[1725199211135,2.52185649,2472.1,2471.8,0.3774]
[1725199211326,1.58815159,2471.9,2471.8,0.3774]
[1725199211628,1.05871574,2471.9,2471.8,0.3774]
[1725199211822,1.05871574,2471.9,2471.8,4.423]
[1725199213138,1.05871574,2471.9,2471.8,0.3774]
[1725199213321,5.63375159,2471.9,2471.7,3.2078]
[1725199213622,0.40458,2471.8,2471.7,3.2078]
[1725199213831,0.4046,2471.7,2471.6,0.00606943]
[1725199214020,1.9899285,2471.7,2471.6,0.00606943]
[1725199214222,6.03549163,2471.7,2471.6,0.00606943]
[1725199214425,6.0342958,2471.7,2471.6,0.00606943]
[1725199214821,17.13876893,2471.7,2471.6,0.00606943]
[1725199215026,11.13876893,2471.7,2471.6,0.00606943]
[1725199215429,17.13876893,2471.7,2471.6,0.00606943]
[1725199216523,15.02144244,2471.7,2471.6,0.00606943]
[1725199217420,10.60224893,2471.7,2471.6,0.00606943]
[1725199218532,0.40465,2471.4,2470.8,1.53083]
[1725199218726,1.05337015,2471.6,2470.8,1.1261]
[1725199218920,1.05337015,2471.6,2470.9,8.32676947]
[1725199219125,4.53649337,2471.5,2470.9,8.32676947]
[1725199219333,0.40468,2471.2,2470.9,8.32676947]
[1725199220126,0.40468,2471.2,2470.8,1.13216943]
[1725199220127,0.40469,2471.2,2470.8,1.13216943]
[1725199221037,0.40473,2470.9,2470.8,0.76186943]
[1725199221231,0.40473,2470.9,2470.8,0.37066943]
[1725199221424,4.45193,2470.9,2470.8,0.00606943]
[1725199221628,4.0472,2470.9,2470.8,0.00606943]
[1725199221829,1.38726,2471.3,2470.8,0.00606943]
[1725199221830,7.3708,2471.5,2471.1,0.40468]
[1725199222030,3.2078,2471.5,2471.2,0.7263]
[1725199222429,0.4046,2471.7,2471.2,1.13098]
[1725199222830,5.02047015,2471.9,2471.2,0.7263]
[1725199223034,3.61237,2471.9,2471.4,0.40463]
[1725199223231,3.61237,2471.9,2471.5,0.3838]
[1725199223829,0.00606943,2472.1,2471.8,0.40457]
[1725199224137,0.00606943,2472.1,2471.9,0.7415]
[1725199224344,0.00606943,2472.1,2471.9,1.14606]
[1725199224540,0.00606943,2472.1,2472.0,9.59673485]
[1725199225341,0.00606943,2472.1,2471.9,0.7415]
[1725199225743,0.41060943,2472.1,2471.9,0.7415]
[1725199225943,0.00606943,2472.1,2471.9,0.7415]
[1725199226240,0.00606943,2472.1,2472.0,0.40455]
[1725199226442,0.00606943,2472.1,2472.0,4.0456]
[1725199227346,0.00606943,2472.1,2471.9,1.14605]
[1725199227549,0.00606943,2472.1,2471.9,0.7415]
[1725199231944,0.00606943,2472.1,2472.0,0.40455]
[1725199232146,3.2078,2472.4,2472.2,0.4045]
[1725199232445,3.2078,2472.4,2472.0,4.0456]
[1725199232446,3.2078,2472.4,2472.1,0.77433]
[1725199232647,3.2078,2472.4,2472.1,0.3698]
[1725199233449,3.2078,2472.4,2472.0,8.70725934]
[1725199233650,0.40451,2472.3,2472.0,8.70725934]
[1725199233847,0.40452,2472.2,2472.0,0.00606943]
[1725199234042,0.40451,2472.3,2472.0,0.00606943]
[1725199234445,0.7482,2472.4,2472.0,0.00606943]
[1725199234639,0.40453,2472.1,2472.0,0.00606943]
[1725199234846,0.40461,2471.6,2471.4,0.3651]
[1725199235041,4.21913,2472.1,2471.4,0.3651]
[1725199235042,0.3669,2472.0,2471.4,0.3651]
[1725199235243,0.40463,2471.5,2471.2,3.2078]
[1725199236058,0.40464,2471.5,2471.1,0.00606943]
[1725199237353,4.65147015,2471.8,2471.1,0.00606943]
[1725199237550,0.40464,2471.5,2471.1,0.00606943]
[1725199237949,4.63530331,2471.7,2471.1,0.00606943]
[1725199237950,0.40464,2471.4,2471.1,0.00606943]
[1725199238165,4.63530331,2471.7,2471.1,0.00606943]
[1725199238356,4.63530331,2471.7,2471.1,3.21386943]
[1725199238552,4.63530331,2471.7,2471.1,3.61854943]
[1725199238858,4.63530331,2471.7,2471.2,0.40468]
[1725199239268,3.2078,2471.8,2471.1,3.21386943]
[1725199239556,3.61238,2471.8,2471.2,5.60108366]
[1725199239857,3.2078,2471.8,2471.2,13.66238494]
[1725199240054,3.2078,2471.8,2471.4,0.40463]
[1725199240454,3.2078,2471.8,2471.5,0.3607]
[1725199240646,3.2078,2471.8,2471.6,0.3897]
[1725199240955,3.61239,2471.8,2471.2,0.40467]
[1725199241144,3.2078,2471.8,2471.3,1.15506]
[1725199241352,3.2078,2471.8,2471.4,0.40464]
[1725199241652,3.2078,2471.8,2471.3,1.15505]
[1725199243645,1.05337015,2472.0,2471.6,0.4046]
[1725199244052,1.96410649,2472.1,2471.6,0.4046]
[1725199244053,1.43667015,2472.1,2471.6,0.4046]
[1725199244448,4.42243716,2472.0,2471.6,0.4046]
[1725199245452,5.47580731,2472.0,2471.4,17.3439288]
[1725199245760,8.68360731,2472.0,2471.4,11.68580891]
[1725199245953,0.40459,2471.8,2471.4,11.68580891]
[1725199246752,0.40457,2471.9,2471.4,12.09044891]
[1725199246952,0.40458,2471.8,2471.4,12.09044891]
[1725199247246,0.40457,2471.9,2471.4,12.09044891]
[1725199247851,1.45793015,2471.9,2471.4,12.09044891]
[1725199248158,4.68413182,2471.8,2471.4,12.09044891]
[1725199248365,4.68413182,2471.8,2471.4,11.68580891]
[1725199248559,4.68413182,2471.8,2471.4,12.09044891]
[1725199248959,4.27954182,2471.8,2471.4,11.68580891]
[1725199249163,0.40468,2471.2,2471.1,0.00606943]
[1725199249464,1.05337015,2471.5,2471.1,0.00606943]
[1725199249665,0.40465,2471.4,2471.1,0.00606943]
[1725199249859,6.02243805,2471.4,2471.1,0.00606943]
[1725199250157,0.40468,2471.2,2471.1,0.00606943]
[1725199250561,4.45108,2471.2,2471.1,0.00606943]
[1725199250862,9.84839946,2471.2,2471.1,0.00606943]
[1725199251162,4.81528,2471.2,2471.1,0.00606943]
[1725199251357,11.87074169,2471.2,2471.1,0.00606943]
[1725199251559,16.86554574,2471.2,2471.1,0.00606943]
[1725199251755,0.40472,2471.0,2470.5,0.77579]
[1725199252059,0.40472,2471.0,2470.6,0.40478]
[1725199252566,1.46032659,2471.1,2470.6,0.40478]
[1725199252862,0.00606943,2471.0,2470.6,0.41084943]
[1725199253252,0.00606943,2471.0,2470.6,0.00606943]
[1725199253455,0.00606943,2471.0,2470.8,0.40474]
[1725199253655,0.00606943,2471.0,2470.7,0.40475]
[1725199253857,0.00606943,2471.0,2470.8,0.40474]
[1725199254060,0.00606943,2471.0,2470.7,3.2078]
[1725199254257,0.00606943,2471.0,2470.8,0.40474]
[1725199254454,0.00606943,2471.0,2470.7,3.61255]
[1725199254756,0.00606943,2471.0,2470.8,0.40474]
[1725199255168,0.00606943,2471.0,2470.9,0.40473]
[1725199256257,0.00606943,2471.0,2470.8,0.40473]
[1725199256666,0.00606943,2471.0,2470.7,3.61255]
[1725199257370,0.00606943,2471.0,2470.9,0.40473]
[1725199257762,0.00606943,2471.0,2470.8,0.40473]
[1725199257967,0.00606943,2471.0,2470.7,3.61255]
[1725199258663,0.35966943,2471.0,2470.7,0.40475]
[1725199258869,1.41529602,2471.0,2470.6,3.21386943]
[1725199259172,1.82001602,2471.0,2470.6,3.61863943]
[1725199259470,0.40473,2470.9,2470.6,3.21386943]
[1725199259664,0.78163,2470.9,2470.6,3.21386943]
[1725199259865,0.40474,2470.8,2470.6,3.21386943]
[1725199260065,0.40476,2470.7,2470.6,3.21386943]
[1725199260361,1.05562659,2470.8,2470.6,3.21386943]
[1725199260362,6.05667104,2470.8,2470.6,3.21386943]
[1725199260677,1.46038659,2470.7,2470.6,3.21386943]
[1725199260865,1.46038659,2470.7,2470.6,0.00606943]
[1725199261167,6.56928649,2470.7,2470.6,0.00606943]
[1725199261372,17.06576873,2470.7,2470.2,3.2078]
[1725199261558,1.46138838,2470.3,2470.2,3.2078]
[1725199261764,0.40485,2470.2,2469.9,0.7516]
[1725199261962,5.52655257,2470.3,2469.7,3.2078]
[1725199262162,0.4049,2469.9,2469.7,3.2078]
[1725199262461,1.46146486,2470.0,2469.7,3.2078]
[1725199262664,0.40489,2469.9,2469.7,3.2078]
[1725199262868,4.63541073,2469.8,2469.7,3.2078]
[1725199263058,8.65346767,2469.9,2469.7,3.2078]
[1725199263260,4.45369,2469.9,2469.7,3.2078]
[1725199263455,4.51640697,2469.8,2469.7,3.2078]
[1725199263770,1.05658486,2470.1,2470.0,0.40487]
[1725199263970,1.05658486,2470.5,2470.3,0.40482]
[1725199264168,1.05658486,2470.6,2470.3,0.40482]
[1725199264658,2.64143743,2470.7,2470.4,0.4048]
[1725199264855,1.05658486,2470.8,2470.4,0.4048]
[1725199265059,1.79758486,2470.9,2470.5,0.40478]
[1725199265265,1.79758486,2470.9,2470.6,0.357]
[1725199265458,4.53500834,2470.8,2470.6,0.357]
[1725199265868,4.67516429,2471.0,2470.5,0.40479]
[1725199266373,4.22516369,2470.9,2470.4,0.7618]
[1725199266570,4.22516369,2470.9,2470.5,0.40479]
[1725199267073,4.22516369,2470.9,2470.6,0.3695]
[1725199267561,4.27045429,2471.0,2470.6,0.3695]
[1725199267963,4.27045429,2471.0,2470.6,0.77427]
[1725199268670,4.27045429,2471.0,2470.6,0.3695]
[1725199268870,0.40474,2470.8,2470.4,0.357]
[1725199269073,0.3869,2470.7,2470.4,0.357]
[1725199270071,0.79166,2470.7,2470.4,0.357]
[1725199270260,0.3869,2470.7,2470.4,0.40481]
[1725199270961,4.58347925,2470.9,2470.3,3.5847]
[1725199271162,4.27045429,2471.0,2470.8,0.40473]
[1725199271163,3.21386943,2471.0,2470.8,0.40473]
[1725199271370,3.21386943,2471.0,2470.9,0.367]
[1725199271563,0.00606943,2471.0,2470.9,8.02673]
[1725199272482,0.00606943,2471.0,2470.9,14.02673]
[1725199272669,4.163,2471.5,2471.3,0.40466]
[1725199272864,1.42128486,2471.7,2471.4,0.7651]
[1725199274275,2.349822,2471.8,2471.4,0.7651]
[1725199274276,1.06265429,2471.8,2471.4,0.7651]
[1725199274465,0.00606943,2471.8,2471.4,0.7651]
[1725199274983,0.00606943,2471.8,2471.5,3.2078]
[1725199275171,0.00606943,2471.8,2471.6,0.4046]
[1725199275567,0.00606943,2471.8,2471.7,0.4046]
[1725199275766,0.00606943,2471.8,2471.6,4.45021]
[1725199276174,0.00606943,2471.8,2471.6,0.40461]
[1725199276574,0.00606943,2471.8,2471.5,3.2078]
[1725199276876,0.00606943,2471.8,2471.7,0.4046]
[1725199277078,0.00606943,2471.8,2471.6,13.52264135]
[1725199277380,0.00606943,2471.8,2471.6,8.27443899]
[1725199277765,0.00606943,2471.8,2471.5,3.2078]
[1725199278465,0.4046,2471.7,2471.5,3.2078]
[1725199278675,0.40463,2471.5,2471.4,0.7651]
[1725199278881,1.05658486,2471.7,2471.3,0.00606943]
[1725199279086,1.46120486,2471.6,2471.3,0.00606943]
[1725199279678,1.05658486,2471.6,2471.3,0.00606943]
[1725199280181,1.05658486,2471.7,2471.3,3.21386943]
[1725199280371,1.05658486,2471.7,2471.3,0.00606943]
[1725199280567,1.05658486,2471.6,2471.3,0.00606943]
[1725199280777,1.05658486,2471.7,2471.3,3.61852943]
[1725199280974,1.05658486,2471.7,2471.4,0.40463]
[1725199281182,1.05658486,2471.7,2471.5,0.3626]
[1725199281380,1.06265429,2471.8,2471.5,0.7347]
[1725199282370,1.06265429,2471.8,2471.3,3.21386943]
[1725199282571,1.46120486,2471.6,2471.3,0.00606943]
[1725199282968,0.3742,2471.5,2471.3,0.00606943]
[1725199283174,1.43078486,2471.5,2471.3,0.00606943]
[1725199283582,0.40464,2471.4,2471.3,0.00606943]
[1725199283785,1.83541486,2471.5,2471.3,0.00606943]
[1725199284681,0.40464,2471.4,2471.3,0.00606943]
[1725199284872,9.87926801,2471.4,2471.3,0.00606943]
[1725199285072,10.24646801,2471.4,2471.3,0.00606943]
[1725199285777,9.18988315,2471.4,2471.3,0.00606943]
[1725199285981,0.40472,2471.0,2470.6,0.7624]
[1725199287081,0.40472,2471.0,2470.6,0.76846943]
[1725199287290,0.40473,2470.9,2470.6,0.76846943]
[1725199287474,0.3737,2471.0,2470.6,0.00606943]
[1725199287781,0.40476,2470.7,2470.6,0.00606943]
[1725199287985,1.46017571,2470.7,2470.6,0.00606943]
[1725199288186,5.86677571,2470.7,2470.6,0.00606943]
[1725199288377,1.05541571,2470.7,2470.6,0.00606943]
[1725199288581,1.05541571,2470.8,2470.6,0.00606943]
[1725199288776,1.05541571,2470.8,2470.6,0.36776943]
[1725199288976,2.63853928,2470.9,2470.6,0.36776943]
[1725199289180,1.05541571,2470.9,2470.6,0.36776943]
[1725199290184,1.05541571,2470.8,2470.6,0.36776943]
[1725199291490,4.0472,2470.7,2470.6,0.00606943]
[1725199291681,0.40483,2470.3,2470.1,3.2078]
[1725199292082,1.46093791,2470.3,2470.1,3.2078]
[1725199292283,0.78394,2470.2,2470.1,3.2078]
[1725199292475,0.3791,2470.2,2469.6,3.2078]
[1725199292676,0.40491,2469.8,2469.7,0.00606943]
[1725199293185,0.40491,2469.8,2469.2,4.148]
[1725199293186,16.15003101,2469.8,2469.2,4.148]
[1725199293386,0.40497,2469.4,2469.2,4.148]
[1725199293692,1.05508474,2469.5,2468.9,3.61285]
[1725199293693,1.05508474,2469.5,2468.9,3.2078]
[1725199293984,0.405,2469.3,2468.8,0.3728]
[1725199294189,0.40502,2469.1,2468.8,0.37684632]
[1725199294392,4.88260462,2469.2,2468.8,0.37684632]
[1725199294784,0.40501,2469.2,2468.8,0.37684632]
[1725199294991,0.40502,2469.1,2468.8,0.37684632]
[1725199295287,0.40502,2469.1,2468.8,0.00404632]
[1725199295288,0.40505,2468.9,2468.8,0.00404632]
[1725199295783,4.45545,2468.9,2468.8,0.00404632]
[1725199297984,4.0504,2468.9,2468.8,0.00404632]
[1725199298380,3.2078,2469.3,2468.9,0.40505]
[1725199298588,3.2078,2469.3,2468.8,0.40910632]
[1725199298780,3.2078,2469.3,2468.8,0.00404632]
[1725199298976,0.40505,2469.0,2468.8,0.00404632]
[1725199299285,4.49156657,2469.2,2468.8,0.00404632]
[1725199299483,4.43975845,2468.9,2468.8,0.00404632]
[1725199299788,0.40505,2469.0,2468.8,0.00404632]
[1725199299983,4.45545,2469.0,2468.8,0.00404632]
[1725199300285,4.163,2469.4,2468.8,0.00404632]
[1725199300286,4.43975845,2468.9,2468.8,0.00404632]
[1725199300485,4.163,2469.4,2468.8,0.00404632]
[1725199300687,4.23854499,2469.2,2468.8,0.40910632]
[1725199300880,0.405,2469.3,2468.8,0.00404632]
[1725199301087,4.163,2469.4,2468.8,0.00404632]
[1725199301283,4.64356499,2469.1,2468.8,0.00404632]
[1725199301582,0.40503,2469.1,2468.8,0.00404632]
[1725199301780,0.40501,2469.2,2468.8,0.00404632]
[1725199301981,4.0504,2469.3,2468.8,0.00404632]
[1725199302185,0.40505,2468.9,2468.8,0.00404632]
[1725199302710,4.64544225,2468.9,2468.8,0.00404632]
[1725199302989,4.56798,2469.4,2468.9,0.40505]
[1725199303193,0.40498,2469.4,2468.9,0.40505]
[1725199303380,4.55042139,2469.3,2469.1,0.40502]
[1725199303586,4.55042139,2469.3,2468.8,0.00404632]
[1725199303784,4.55042139,2469.4,2468.8,0.00404632]
[1725199304087,0.40501,2469.2,2468.8,0.00404632]
[1725199304394,4.54095261,2469.1,2468.8,0.00404632]
[1725199304596,4.94597261,2469.1,2468.8,0.00404632]
[1725199305091,0.40502,2469.1,2468.8,0.00404632]
[1725199305389,1.76081,2469.5,2468.8,0.00404632]
[1725199305390,4.94599261,2469.0,2468.8,0.00404632]
[1725199305585,4.54095261,2469.0,2468.8,0.00404632]
[1725199305889,0.40504,2469.0,2468.8,0.00404632]
[1725199306086,0.40503,2469.1,2468.8,0.00404632]
[1725199306294,0.40501,2469.2,2468.8,0.00404632]
[1725199306489,4.97992601,2469.1,2468.8,0.00404632]
[1725199306788,0.40501,2469.2,2468.8,0.00404632]
[1725199306990,0.405,2469.3,2468.8,0.40911632]
[1725199307293,4.57489601,2469.1,2468.9,0.40504]
[1725199307482,0.40499,2469.3,2468.9,0.75834]
[1725199308289,0.7484,2469.5,2468.9,0.3533]
[1725199308496,4.4985301,2469.2,2468.9,0.75834]
[1725199308797,0.40499,2469.3,2468.9,0.75834]
[1725199309094,0.40498,2469.4,2468.9,0.75834]
[1725199309297,1.15336,2469.5,2469.0,0.40503]
[1725199309492,5.05737232,2469.4,2469.0,0.40503]
[1725199309685,0.40499,2469.3,2468.9,1.14115]
[1725199309887,0.40499,2469.3,2468.9,0.7361]
[1725199310100,4.65240232,2469.2,2468.9,1.14115]
[1725199310389,0.40503,2469.1,2468.8,0.00404632]
[1725199311787,5.05741232,2469.2,2468.8,0.40911632]
[1725199311994,0.40502,2469.1,2468.8,0.00404632]
[1725199312185,0.40504,2469.0,2468.8,0.00404632]
[1725199312689,0.40503,2469.1,2468.8,0.00404632]
[1725199314301,0.40504,2469.0,2468.8,0.00404632]
[1725199314593,0.40503,2469.1,2468.8,0.00404632]
[1725199315383,0.40504,2469.0,2468.8,0.00404632]
[1725199315891,0.40505,2468.9,2468.8,0.00404632]
[1725199316198,0.40505,2468.9,2468.4,3.2078]
[1725199316199,0.40512,2468.5,2468.4,3.2078]
[1725199317687,1.01879943,2468.7,2468.1,4.148]
[1725199317901,0.40514,2468.4,2468.0,0.4052]
[1725199318897,0.40515,2468.3,2467.9,4.38841]
[1725199319296,0.4052,2468.0,2467.9,3.2078]
[1725199319791,4.4572,2468.0,2467.9,3.2078]
[1725199321393,0.40519,2468.1,2467.9,3.2078]
[1725199321801,4.97764286,2468.1,2467.9,3.2078]
[1725199321999,0.4052,2468.0,2467.9,3.2078]
[1725199322694,14.43060675,2468.0,2467.4,0.7264]
[1725199322896,0.40528,2467.6,2467.4,0.7264]
[1725199323297,4.76130675,2468.0,2467.2,3.2078]
[1725199323298,0.40532,2467.3,2467.2,3.2078]
[1725199323700,4.45812,2467.3,2467.2,3.2078]
[1725199324202,4.45812,2467.3,2466.5,3.2078]
[1725199324203,0.40539,2466.9,2466.5,3.2078]
[1725199324396,0.00608199,2466.9,2466.5,3.61324]
[1725199324706,4.31738212,2466.8,2466.7,3.61322]
[1725199324998,0.00608199,2466.9,2466.8,4.459]
[1725199325200,0.00608199,2466.9,2466.8,9.72096954]
[1725199325406,0.00608199,2466.9,2466.8,4.459]
[1725199326000,0.00608199,2466.9,2466.8,4.0536]
[1725199326196,0.41147199,2466.9,2466.4,3.61326]
[1725199326395,0.41147199,2466.9,2466.5,0.40545]
[1725199326697,0.41146199,2466.9,2466.4,3.5654]
[1725199326899,0.41146199,2466.9,2466.5,0.40544]
[1725199327210,0.41147199,2466.9,2466.4,3.97086]
[1725199328001,0.41147199,2466.9,2466.4,3.5654]
[1725199328199,0.41147199,2466.9,2466.4,3.97086]
[1725199328200,0.4054,2466.8,2466.4,3.97086]
[1725199328592,0.41147199,2466.9,2466.4,0.76306]
[1725199329005,0.00608199,2466.9,2466.4,3.5654]
[1725199329302,0.00608199,2466.9,2466.5,0.40545]
[1725199329501,0.00608199,2466.9,2466.6,0.40543]
[1725199330203,0.00608199,2466.9,2466.5,0.40544]
[1725199330504,0.00608199,2466.9,2466.6,0.40543]
[1725199330807,0.00608199,2466.9,2466.8,0.4054]
[1725199331302,0.00608199,2466.9,2466.8,4.459]
[1725199332005,3.5968,2467.7,2466.9,0.00608199]
[1725199332207,3.5968,2467.7,2467.0,3.2078]
[1725199332410,3.2078,2467.7,2467.0,8.54174339]
[1725199332713,3.2078,2467.7,2467.3,0.4053]
[1725199333096,3.21388199,2467.7,2467.3,0.4053]
[1725199333301,3.21388199,2467.7,2467.6,0.40527]
[1725199333302,0.00608199,2467.7,2467.6,0.40527]
[1725199333712,0.00608199,2467.7,2467.6,4.45807]
[1725199333899,0.00608199,2467.7,2467.6,13.66587]
[1725199334206,3.2078,2468.3,2467.6,12.54673475]
[1725199334207,0.4052,2468.0,2467.6,12.54673475]
[1725199334410,3.2078,2468.3,2467.6,3.2078]
[1725199334605,0.40522,2467.9,2467.6,3.2078]
[1725199334810,0.40525,2467.8,2467.5,0.3812]
[1725199335011,5.03680319,2468.2,2467.5,3.589]
[1725199335012,0.00608199,2467.9,2467.5,3.589]
[1725199335207,0.00608199,2467.9,2467.8,0.40523]
[1725199335603,0.00608199,2467.9,2467.8,4.052]
[1725199335919,0.00608199,2467.9,2467.8,4.45723]
[1725199336210,0.00608199,2467.9,2467.8,4.052]
[1725199336414,0.40524,2467.8,2467.5,3.589]
[1725199336616,4.05808199,2467.9,2467.5,3.589]
[1725199336617,0.40527,2467.7,2467.5,3.589]
[1725199336910,4.68978497,2467.7,2467.5,3.589]
[1725199337812,0.40527,2467.6,2467.5,3.589]
[1725199338016,0.40527,2467.6,2467.5,3.2078]
[1725199338409,0.40527,2467.6,2467.2,4.148]
[1725199339111,4.28451497,2467.7,2467.2,4.148]
[1725199339302,4.25717075,2467.5,2467.2,4.148]
[1725199339704,0.4053,2467.4,2467.2,4.148]
[1725199339907,3.2078,2467.6,2467.0,0.7505]
[1725199340211,4.26085883,2467.5,2467.0,0.7505]
[1725199340417,4.66615883,2467.5,2467.0,0.7505]
[1725199340609,0.40533,2467.3,2467.0,0.7505]
[1725199340805,0.40533,2467.2,2467.0,0.7505]
[1725199341014,0.40535,2467.1,2466.9,3.21388199]
[1725199341511,0.7337,2467.4,2466.9,3.21388199]
[1725199341718,0.40537,2467.0,2466.9,3.21388199]
[1725199342011,4.90557134,2467.0,2466.9,3.21388199]
[1725199342208,0.40537,2467.0,2466.9,3.21388199]
[1725199342404,0.40537,2467.0,2466.9,0.00608199]
[1725199343413,0.40543,2466.6,2466.4,0.3761]
[1725199343608,0.40545,2466.5,2466.2,4.148]
[1725199343810,0.40547,2466.4,2466.2,4.148]
[1725199344008,0.40548,2466.4,2466.2,4.148]
[1725199344719,0.00608199,2466.5,2466.3,0.40547]
[1725199345018,0.00608199,2466.5,2466.3,0.3737]
[1725199345211,0.00608199,2466.5,2466.3,0.77918]
[1725199346009,0.00608199,2466.5,2466.3,0.3737]
[1725199347508,0.41153199,2466.5,2466.3,0.3737]
[1725199347710,0.00608199,2466.5,2466.3,0.3737]
[1725199348115,4.06048199,2466.5,2466.1,0.00608199]
[1725199348416,0.4055,2466.2,2466.1,0.00608199]
[1725199348810,8.6811873,2466.2,2466.1,0.00608199]
[1725199349414,0.40555,2465.9,2465.8,3.2078]
[1725199351223,0.40558,2465.7,2465.4,0.3699]
[1725199351411,0.40557,2465.8,2465.4,0.3699]
[1725199352016,0.40558,2465.7,2465.4,0.3699]
[1725199352320,0.40558,2465.7,2464.5,7.3558]
[1725199352321,3.2078,2465.5,2464.5,7.3558]
[1725199352509,0.00608199,2465.2,2464.5,7.3558]
[1725199352708,3.2078,2465.1,2464.5,3.2078]
[1725199353013,0.40573,2464.8,2464.5,3.2078]
[1725199353221,4.58682891,2465.1,2464.5,3.2078]
[1725199353412,4.58682891,2464.7,2464.5,3.2078]
[1725199353611,3.2078,2465.1,2464.7,0.40574]
[1725199353810,3.2078,2465.1,2464.6,4.0576]
[1725199353811,3.2078,2465.1,2464.6,0.40576]
[1725199354115,3.2078,2465.1,2465.0,0.40569]
[1725199354310,0.00608199,2465.2,2464.9,3.2078]
[1725199354516,0.00608199,2465.2,2464.6,13.59888406]
[1725199354726,4.62525655,2465.1,2464.6,6.01394545]
[1725199354916,0.00608199,2465.2,2464.6,0.3661]
[1725199355111,0.00608199,2465.2,2464.7,5.70024477]
[1725199355420,0.00608199,2465.2,2464.7,5.29451477]
[1725199355821,3.2078,2465.1,2464.6,0.3661]
[1725199356024,4.9728797,2465.1,2464.6,0.3661]
[1725199356212,0.40571,2465.0,2464.6,0.3661]
[1725199356417,0.40574,2464.8,2464.5,3.2078]
[1725199356618,3.2078,2464.8,2463.5,3.2078]
[1725199356821,0.40576,2464.6,2463.4,3.9573]
[1725199357110,4.2935012,2464.7,2464.2,0.40581]
[1725199357313,0.79742,2464.9,2464.3,0.3661]
[1725199357512,7.98527669,2464.8,2464.3,0.3661]
[1725199357706,4.37173669,2464.8,2464.3,0.3661]
[1725199357913,0.3917,2464.9,2464.3,0.3661]
[1725199358112,4.37173669,2464.8,2464.3,0.3661]
[1725199358321,3.61348,2465.1,2464.3,3.9797]
[1725199358529,0.4057,2465.0,2464.3,0.3661]
[1725199358826,4.50313893,2464.9,2464.3,3.97971]
[1725199359021,4.50313893,2465.0,2464.3,3.5739]
[1725199359324,0.00608199,2465.2,2464.6,3.2078]
[1725199359523,0.00608199,2465.2,2464.9,3.2078]
[1725199359720,0.00608199,2465.2,2464.7,5.71311445]